[Event "Early-Titled-Tuesday-Blitz-January-16-2024"]
[Site "Chess.com"]
[Date "2024.01.16"]
[Round "7"]
[White "Brahianzevich"]
[Black "tteshan"]
[Result "0-1"]
[WhiteElo "2432"]
[BlackElo "2597"]
[TimeControl "180+1"]
[EndTime "9:22:44 PST"]
[Termination "tteshan won on time"]

1. e4 {[%clk 0:02:59.1]} 1... c5 {[%clk 0:03:00.1]} 2. Nf3 {[%clk 0:02:58.8]}
2... Nc6 {[%clk 0:03:00.5]} 3. d4 {[%clk 0:02:58.5]} 3... cxd4 {[%clk
0:03:01.4]} 4. Nxd4 {[%clk 0:02:59]} 4... g6 {[%clk 0:03:02.1]} 5. Nc3 {[%clk
0:02:59.2]} 5... Bg7 {[%clk 0:03:02.1]} 6. Nde2 {[%clk 0:02:59.4]} 6... Nf6
{[%clk 0:03:00.7]} 7. g3 {[%clk 0:02:58]} 7... O-O {[%clk 0:03:01.1]} 8. Bg2
{[%clk 0:02:57.9]} 8... d6 {[%clk 0:03:01.6]} 9. O-O {[%clk 0:02:57.6]} 9... a6
{[%clk 0:02:58.7]} 10. a4 {[%clk 0:02:57]} 10... h5 {[%clk 0:02:50.1]} 11. h3
{[%clk 0:02:54.9]} 11... Bd7 {[%clk 0:02:39.4]} 12. Nd5 {[%clk 0:02:47.3]} 12...
Nxd5 {[%clk 0:02:36.9]} 13. exd5 {[%clk 0:02:46.5]} 13... Ne5 {[%clk 0:02:33.9]}
14. Ra2 {[%clk 0:02:37]} 14... Rc8 {[%clk 0:02:27.6]} 15. b3 {[%clk 0:02:36.1]}
15... f6 {[%clk 0:02:00.6]} 16. a5 {[%clk 0:02:24.1]} 16... Nf7 {[%clk
0:01:48.1]} 17. c4 {[%clk 0:02:12]} 17... Kh7 {[%clk 0:01:47.3]} 18. Nd4 {[%clk
0:02:02.7]} 18... Bh6 {[%clk 0:01:46.7]} 19. Bxh6 {[%clk 0:01:45.8]} 19... Nxh6
{[%clk 0:01:47.6]} 20. Re1 {[%clk 0:01:40.5]} 20... Rc5 {[%clk 0:01:31.2]} 21.
Qd3 {[%clk 0:00:56.3]} 21... Rf7 {[%clk 0:01:09.5]} 22. b4 {[%clk 0:00:54.5]}
22... Rc8 {[%clk 0:01:05.2]} 23. Ne6 {[%clk 0:00:47.4]} 23... Qg8 {[%clk
0:00:53.1]} 24. Rae2 {[%clk 0:00:34.6]} 24... Nf5 {[%clk 0:00:46.6]} 25. Bf3
{[%clk 0:00:26.9]} 25... Ng7 {[%clk 0:00:24.6]} 26. Nxg7 {[%clk 0:00:20.6]}
26... Qxg7 {[%clk 0:00:25.5]} 27. Bxh5 {[%clk 0:00:20.6]} 27... Bf5 {[%clk
0:00:25.8]} 28. Qf3 {[%clk 0:00:17.3]} 28... Rxc4 {[%clk 0:00:22.7]} 29. Bg4
{[%clk 0:00:15.6]} 29... Bxg4 {[%clk 0:00:21.1]} 30. hxg4 {[%clk 0:00:16.5]}
30... Kg8 {[%clk 0:00:20.9]} 31. Re4 {[%clk 0:00:10.7]} 31... Rxe4 {[%clk
0:00:18.6]} 32. Qxe4 {[%clk 0:00:10.6]} 32... Qh6 {[%clk 0:00:18.3]} 33. Kg2
{[%clk 0:00:10.2]} 33... Rh7 {[%clk 0:00:17.2]} 34. Qe6+ {[%clk 0:00:08]} 34...
Rf7 {[%clk 0:00:08.6]} 35. Rh1 {[%clk 0:00:06.6]} 35... Qg5 {[%clk 0:00:06.7]}
36. Rh8+ {[%clk 0:00:06.2]} 36... Kxh8 {[%clk 0:00:06.9]} 37. Qxf7 {[%clk
0:00:06.8]} 37... Qe5 {[%clk 0:00:04.6]} 38. Qxg6 {[%clk 0:00:05.6]} 38... Qxd5+
{[%clk 0:00:05.2]} 39. Kh2 {[%clk 0:00:05.4]} 39... Qe5 {[%clk 0:00:05.5]} 40.
Qe8+ {[%clk 0:00:04.4]} 40... Kg7 {[%clk 0:00:05.9]} 41. Qc8 {[%clk 0:00:02.7]}
41... d5 {[%clk 0:00:05.9]} 42. Qxb7 {[%clk 0:00:02.5]} 42... d4 {[%clk
0:00:06.4]} 0-1

[Event "Early-Titled-Tuesday-Blitz-January-16-2024"]
[Site "Chess.com"]
[Date "2024.01.16"]
[Round "7"]
[White "N4700000"]
[Black "mertfelin"]
[Result "1-0"]
[WhiteElo "2415"]
[BlackElo "2220"]
[TimeControl "180+1"]
[EndTime "9:22:44 PST"]
[Termination "N4700000 won by resignation"]

1. e4 {[%clk 0:03:00.9]} 1... e5 {[%clk 0:02:50.5]} 2. Nf3 {[%clk 0:03:00.4]}
2... Nc6 {[%clk 0:02:50.7]} 3. Bc4 {[%clk 0:02:59]} 3... Bc5 {[%clk 0:02:50.8]}
4. c3 {[%clk 0:02:58.3]} 4... Nf6 {[%clk 0:02:51.2]} 5. d4 {[%clk 0:02:57.7]}
5... exd4 {[%clk 0:02:52.1]} 6. cxd4 {[%clk 0:02:57.4]} 6... Bb4+ {[%clk
0:02:52.4]} 7. Nbd2 {[%clk 0:02:51.4]} 7... d5 {[%clk 0:02:51.5]} 8. exd5 {[%clk
0:02:47.2]} 8... Nxd5 {[%clk 0:02:52.4]} 9. O-O {[%clk 0:02:44.7]} 9... O-O
{[%clk 0:02:51.9]} 10. a3 {[%clk 0:02:34.2]} 10... Be7 {[%clk 0:02:49.6]} 11.
Ne4 {[%clk 0:02:28.2]} 11... Bg4 {[%clk 0:02:46.5]} 12. Be3 {[%clk 0:02:13.7]}
12... Re8 {[%clk 0:02:21.4]} 13. h3 {[%clk 0:02:11.4]} 13... Bh5 {[%clk
0:02:21.3]} 14. Ng3 {[%clk 0:02:10.3]} 14... Bg6 {[%clk 0:02:21.2]} 15. Rc1
{[%clk 0:02:04.8]} 15... Bf6 {[%clk 0:02:11.4]} 16. Re1 {[%clk 0:01:50.4]} 16...
Qd7 {[%clk 0:02:05.8]} 17. Bb5 {[%clk 0:01:46.5]} 17... Rad8 {[%clk 0:01:52.4]}
18. Qa4 {[%clk 0:01:42.3]} 18... Nxe3 {[%clk 0:01:45.9]} 19. fxe3 {[%clk
0:01:39.5]} 19... Re7 {[%clk 0:01:36]} 20. Bxc6 {[%clk 0:01:35.2]} 20... bxc6
{[%clk 0:01:35.8]} 21. Qxc6 {[%clk 0:01:34.8]} 21... Qxc6 {[%clk 0:01:32.1]} 22.
Rxc6 {[%clk 0:01:35.7]} 22... Rde8 {[%clk 0:01:28.3]} 23. Kf2 {[%clk 0:01:34.4]}
23... h6 {[%clk 0:01:25.9]} 24. b4 {[%clk 0:01:24.5]} 24... a5 {[%clk
0:01:13.1]} 25. bxa5 {[%clk 0:01:21.9]} 25... Ra8 {[%clk 0:01:13.3]} 26. a6
{[%clk 0:01:21.6]} 26... Bd3 {[%clk 0:01:10.5]} 27. Rec1 {[%clk 0:01:15.1]}
27... Ra7 {[%clk 0:01:09.5]} 28. R1c3 {[%clk 0:01:11.5]} 28... Bxa6 {[%clk
0:01:06.4]} 29. Nf5 {[%clk 0:01:11]} 29... Rd7 {[%clk 0:01:07]} 30. Nxh6+ {[%clk
0:01:03.9]} 30... Kh7 {[%clk 0:01:04.9]} 31. Ng4 {[%clk 0:01:03.3]} 31... Bd8
{[%clk 0:00:54.1]} 32. R3c5 {[%clk 0:00:55.5]} 32... Re7 {[%clk 0:00:46.1]} 33.
Rh5+ {[%clk 0:00:53.1]} 33... Kg8 {[%clk 0:00:46.4]} 34. Nge5 {[%clk 0:00:46.6]}
34... Bc8 {[%clk 0:00:42.9]} 35. Rc3 {[%clk 0:00:44.2]} 35... Ra5 {[%clk
0:00:38.7]} 36. g4 {[%clk 0:00:34.3]} 36... Rb5 {[%clk 0:00:39.2]} 37. Nc6
{[%clk 0:00:33.6]} 37... Rb2+ {[%clk 0:00:38]} 38. Kg3 {[%clk 0:00:33.7]} 38...
Rd7 {[%clk 0:00:37.1]} 39. Nfe5 {[%clk 0:00:29.1]} 39... Rd5 {[%clk 0:00:34.1]}
40. Nxd8 {[%clk 0:00:22.8]} 40... Rxd8 {[%clk 0:00:34.5]} 41. Nc6 {[%clk
0:00:22.8]} 41... Re8 {[%clk 0:00:32.1]} 42. Re5 {[%clk 0:00:21.1]} 42... Be6
{[%clk 0:00:21.7]} 43. d5 {[%clk 0:00:19.3]} 43... Bd7 {[%clk 0:00:22.3]} 44.
Rxe8+ {[%clk 0:00:19]} 44... Bxe8 {[%clk 0:00:22.8]} 45. Ne7+ {[%clk 0:00:18.2]}
45... Kf8 {[%clk 0:00:23]} 46. Rxc7 {[%clk 0:00:18.9]} 46... Rb3 {[%clk
0:00:23.2]} 47. Kf4 {[%clk 0:00:18.9]} 47... Rd3 {[%clk 0:00:23]} 48. e4 {[%clk
0:00:18.6]} 48... Rxh3 {[%clk 0:00:20.3]} 49. Ra7 {[%clk 0:00:16.2]} 49... Rd3
{[%clk 0:00:19.5]} 50. Nf5 {[%clk 0:00:16.2]} 50... g6 {[%clk 0:00:19.4]} 51.
Nd6 {[%clk 0:00:14.5]} 1-0

[Event "Early-Titled-Tuesday-Blitz-January-16-2024"]
[Site "Chess.com"]
[Date "2024.01.16"]
[Round "7"]
[White "Yaacovn"]
[Black "evgchess5"]
[Result "0-1"]
[WhiteElo "2886"]
[BlackElo "2985"]
[TimeControl "180+1"]
[EndTime "9:22:46 PST"]
[Termination "evgchess5 won on time"]

1. d4 {[%clk 0:03:00.9]} 1... Nf6 {[%clk 0:02:54.5]} 2. e3 {[%clk 0:02:53]} 2...
e6 {[%clk 0:02:51.8]} 3. Bd3 {[%clk 0:02:49]} 3... c5 {[%clk 0:02:51.1]} 4. c3
{[%clk 0:02:41.4]} 4... d5 {[%clk 0:02:48.5]} 5. Nd2 {[%clk 0:02:39.9]} 5... Bd6
{[%clk 0:02:40.8]} 6. f4 {[%clk 0:02:38.4]} 6... cxd4 {[%clk 0:02:36]} 7. cxd4
{[%clk 0:02:37.1]} 7... O-O {[%clk 0:02:34.8]} 8. Ngf3 {[%clk 0:02:36.6]} 8...
b6 {[%clk 0:02:35.1]} 9. Qe2 {[%clk 0:02:36.3]} 9... a5 {[%clk 0:02:32.8]} 10.
e4 {[%clk 0:02:35.3]} 10... dxe4 {[%clk 0:02:13.8]} 11. Nxe4 {[%clk 0:02:35.1]}
11... Bb4+ {[%clk 0:02:10.7]} 12. Bd2 {[%clk 0:02:20.9]} 12... Bxd2+ {[%clk
0:02:07.4]} 13. Qxd2 {[%clk 0:02:15]} 13... Bb7 {[%clk 0:01:58.8]} 14. Nfg5
{[%clk 0:01:56.6]} 14... Nxe4 {[%clk 0:01:49.8]} 15. Bxe4 {[%clk 0:01:55.5]}
15... Bxe4 {[%clk 0:01:48.1]} 16. Nxe4 {[%clk 0:01:55.8]} 16... Nc6 {[%clk
0:01:45.8]} 17. Rd1 {[%clk 0:01:47.5]} 17... Qh4+ {[%clk 0:01:35.4]} 18. g3
{[%clk 0:01:46.3]} 18... Qh5 {[%clk 0:01:30.8]} 19. Qg2 {[%clk 0:00:50.1]} 19...
Qd5 {[%clk 0:01:15.9]} 20. O-O {[%clk 0:00:47.7]} 20... Rfd8 {[%clk 0:01:15.9]}
21. Nc3 {[%clk 0:00:42.2]} 21... Qxg2+ {[%clk 0:01:10.5]} 22. Kxg2 {[%clk
0:00:43.1]} 22... Nxd4 {[%clk 0:01:08.5]} 23. Rd3 {[%clk 0:00:32.2]} 23... Kf8
{[%clk 0:00:47.1]} 24. Rfd1 {[%clk 0:00:30.6]} 24... Nc6 {[%clk 0:00:47.2]} 25.
Rd6 {[%clk 0:00:20.3]} 25... Rxd6 {[%clk 0:00:46]} 26. Rxd6 {[%clk 0:00:21.2]}
26... Rc8 {[%clk 0:00:45.7]} 27. Na4 {[%clk 0:00:21.2]} 27... Ke7 {[%clk
0:00:25.5]} 28. Rd2 {[%clk 0:00:10.5]} 28... b5 {[%clk 0:00:24.9]} 29. Nc3
{[%clk 0:00:05.4]} 29... b4 {[%clk 0:00:23.5]} 30. Ne4 {[%clk 0:00:05.7]} 30...
Nd8 {[%clk 0:00:18.8]} 31. Kf3 {[%clk 0:00:05.1]} 31... Nb7 {[%clk 0:00:18.4]}
32. g4 {[%clk 0:00:04.2]} 32... Rc7 {[%clk 0:00:17.1]} 33. h4 {[%clk 0:00:04.1]}
33... h6 {[%clk 0:00:16.6]} 34. h5 {[%clk 0:00:03.8]} 34... Nc5 {[%clk
0:00:14.1]} 35. Rc2 {[%clk 0:00:03.5]} 35... Na6 {[%clk 0:00:14.1]} 36. Rd2
{[%clk 0:00:04]} 36... Nb8 {[%clk 0:00:14.1]} 37. g5 {[%clk 0:00:04]} 37... Nc6
{[%clk 0:00:13.2]} 38. gxh6 {[%clk 0:00:04]} 38... gxh6 {[%clk 0:00:12.9]} 39.
Ke3 {[%clk 0:00:02.8]} 39... f5 {[%clk 0:00:11.8]} 40. Nc5 {[%clk 0:00:01.7]}
40... Nd8 {[%clk 0:00:11.8]} 41. Nd3 {[%clk 0:00:02]} 41... Nf7 {[%clk
0:00:11.3]} 42. Rg2 {[%clk 0:00:01.9]} 42... Rc8 {[%clk 0:00:10]} 43. Rg6 {[%clk
0:00:01.9]} 43... Rc4 {[%clk 0:00:08.7]} 0-1

[Event "Early-Titled-Tuesday-Blitz-January-16-2024"]
[Site "Chess.com"]
[Date "2024.01.16"]
[Round "7"]
[White "tptagain"]
[Black "Durarbayli"]
[Result "1-0"]
[WhiteElo "2963"]
[BlackElo "2842"]
[TimeControl "180+1"]
[EndTime "9:22:48 PST"]
[Termination "tptagain won on time"]

1. Nf3 {[%clk 0:03:00.9]} 1... Nf6 {[%clk 0:02:57.1]} 2. b3 {[%clk 0:03:00.9]}
2... d5 {[%clk 0:02:55.4]} 3. Bb2 {[%clk 0:03:00.8]} 3... c5 {[%clk 0:02:55.8]}
4. e3 {[%clk 0:03:01]} 4... a6 {[%clk 0:02:55.9]} 5. g3 {[%clk 0:03:00.5]} 5...
Nc6 {[%clk 0:02:54.2]} 6. Bg2 {[%clk 0:02:59.1]} 6... Bg4 {[%clk 0:02:53.7]} 7.
h3 {[%clk 0:02:58.6]} 7... Bh5 {[%clk 0:02:51.3]} 8. g4 {[%clk 0:02:55.2]} 8...
Bg6 {[%clk 0:02:51.3]} 9. Nh4 {[%clk 0:02:52.9]} 9... e5 {[%clk 0:02:48]} 10. d3
{[%clk 0:02:49.6]} 10... Qd6 {[%clk 0:02:28.1]} 11. g5 {[%clk 0:02:42.9]} 11...
Nd7 {[%clk 0:02:26.9]} 12. Nc3 {[%clk 0:02:37.2]} 12... d4 {[%clk 0:02:15.9]}
13. Ne4 {[%clk 0:02:35.1]} 13... Bxe4 {[%clk 0:02:16.4]} 14. Bxe4 {[%clk
0:02:35.5]} 14... g6 {[%clk 0:02:16.9]} 15. Qg4 {[%clk 0:02:21.3]} 15... h6
{[%clk 0:02:07.1]} 16. Nf3 {[%clk 0:01:21.4]} 16... hxg5 {[%clk 0:02:05.4]} 17.
Qxg5 {[%clk 0:01:22.3]} 17... Bh6 {[%clk 0:01:54.3]} 18. Qh4 {[%clk 0:01:22.6]}
18... f5 {[%clk 0:01:45.6]} 19. Bxc6 {[%clk 0:01:13.5]} 19... Qxc6 {[%clk
0:01:46.5]} 20. Ke2 {[%clk 0:01:10.8]} 20... Kf7 {[%clk 0:01:35.3]} 21. Ng5+
{[%clk 0:00:53.9]} 21... Bxg5 {[%clk 0:01:35.4]} 22. Qxg5 {[%clk 0:00:54.8]}
22... Rae8 {[%clk 0:01:20.8]} 23. Rag1 {[%clk 0:00:53.5]} 23... Rh5 {[%clk
0:01:14.4]} 24. Qg3 {[%clk 0:00:52.9]} 24... e4 {[%clk 0:01:10.3]} 25. Kd2
{[%clk 0:00:43.1]} 25... exd3 {[%clk 0:01:07]} 26. cxd3 {[%clk 0:00:42.7]} 26...
Ne5 {[%clk 0:01:04.7]} 27. Kc2 {[%clk 0:00:40.3]} 27... Nf3 {[%clk 0:01:03.9]}
28. Rd1 {[%clk 0:00:37.8]} 28... dxe3 {[%clk 0:01:01.6]} 29. fxe3 {[%clk
0:00:37.4]} 29... Rxe3 {[%clk 0:01:02.5]} 30. Qf4 {[%clk 0:00:32.9]} 30... Re2+
{[%clk 0:00:49.1]} 31. Kb1 {[%clk 0:00:33]} 31... Rh4 {[%clk 0:00:49.7]} 32. Qb8
{[%clk 0:00:28.5]} 32... Nd4 {[%clk 0:00:29.5]} 33. Rc1 {[%clk 0:00:20.8]} 33...
Re8 {[%clk 0:00:10.3]} 34. Qg3 {[%clk 0:00:20.4]} 34... Rh6 {[%clk 0:00:07.1]}
35. Qf4 {[%clk 0:00:16.9]} 35... Rh5 {[%clk 0:00:04.4]} 36. Rhe1 {[%clk
0:00:16.5]} 36... Ne2 {[%clk 0:00:04.2]} 37. Qc4+ {[%clk 0:00:16.5]} 37... Qe6
{[%clk 0:00:03.7]} 38. Qxc5 {[%clk 0:00:15.6]} 38... f4 {[%clk 0:00:03.5]} 39.
Qc7+ {[%clk 0:00:12]} 39... Re7 {[%clk 0:00:03.9]} 40. Qb8 {[%clk 0:00:12.1]}
40... Qd5 {[%clk 0:00:03.7]} 41. Rxe2 {[%clk 0:00:11.2]} 41... Rxe2 {[%clk
0:00:04.6]} 42. Qxf4+ {[%clk 0:00:11.2]} 42... Rf5 {[%clk 0:00:04.3]} 43. Qc7+
{[%clk 0:00:11.4]} 43... Re7 {[%clk 0:00:04.9]} 44. Qc3 {[%clk 0:00:12.1]} 44...
Rf3 {[%clk 0:00:03.3]} 45. Qg7+ {[%clk 0:00:11.9]} 45... Ke8 {[%clk 0:00:02.6]}
46. Qh8+ {[%clk 0:00:12]} 46... Kf7 {[%clk 0:00:02.2]} 47. Qh7+ {[%clk
0:00:11.7]} 47... Ke6 {[%clk 0:00:02.5]} 48. Qg8+ {[%clk 0:00:11.5]} 48... Kd6
{[%clk 0:00:02]} 49. Ba3+ {[%clk 0:00:10.8]} 1-0

[Event "Early-Titled-Tuesday-Blitz-January-16-2024"]
[Site "Chess.com"]
[Date "2024.01.16"]
[Round "7"]
[White "Bigfish1995"]
[Black "Bauman_Guy"]
[Result "1-0"]
[WhiteElo "3043"]
[BlackElo "2918"]
[TimeControl "180+1"]
[EndTime "9:22:49 PST"]
[Termination "Bigfish1995 won by resignation"]

1. e4 {[%clk 0:03:00.9]} 1... c5 {[%clk 0:02:59.9]} 2. Nf3 {[%clk 0:03:00.5]}
2... d6 {[%clk 0:02:59.9]} 3. d4 {[%clk 0:02:59.8]} 3... cxd4 {[%clk 0:03:00.2]}
4. Nxd4 {[%clk 0:03:00.7]} 4... Nf6 {[%clk 0:03:00.6]} 5. Nc3 {[%clk 0:03:00.3]}
5... a6 {[%clk 0:03:01.1]} 6. g3 {[%clk 0:02:59.6]} 6... e5 {[%clk 0:03:01.1]}
7. Nf3 {[%clk 0:02:52.5]} 7... Be7 {[%clk 0:03:00.9]} 8. Nh4 {[%clk 0:02:51.5]}
8... g6 {[%clk 0:02:57.7]} 9. Bg2 {[%clk 0:02:50.6]} 9... b5 {[%clk 0:02:57.6]}
10. a4 {[%clk 0:02:40.1]} 10... b4 {[%clk 0:02:56.7]} 11. Nd5 {[%clk 0:02:40]}
11... Nxd5 {[%clk 0:02:55.1]} 12. Qxd5 {[%clk 0:02:40.9]} 12... Ra7 {[%clk
0:02:55.5]} 13. Be3 {[%clk 0:02:37.7]} 13... Rb7 {[%clk 0:02:55.1]} 14. O-O
{[%clk 0:02:30.2]} 14... Qc7 {[%clk 0:02:55]} 15. Bh6 {[%clk 0:02:15.7]} 15...
Be6 {[%clk 0:02:54.1]} 16. Qd2 {[%clk 0:02:11.7]} 16... Nc6 {[%clk 0:02:42.5]}
17. f4 {[%clk 0:02:11.6]} 17... Nd4 {[%clk 0:02:40]} 18. f5 {[%clk 0:01:59.3]}
18... Bc4 {[%clk 0:02:38.3]} 19. Rf2 {[%clk 0:01:56.6]} 19... Bxh4 {[%clk
0:02:33.9]} 20. gxh4 {[%clk 0:01:53.1]} 20... gxf5 {[%clk 0:02:31.4]} 21. Qg5
{[%clk 0:01:30.2]} 21... Qd8 {[%clk 0:02:15.3]} 22. b3 {[%clk 0:01:03.3]} 22...
f6 {[%clk 0:01:57.1]} 23. Qd2 {[%clk 0:01:01.4]} 23... Bf7 {[%clk 0:01:46.1]}
24. Be3 {[%clk 0:01:01]} 24... Nc6 {[%clk 0:01:17.9]} 25. Rxf5 {[%clk
0:01:00.9]} 25... Be6 {[%clk 0:01:16.3]} 26. Rf3 {[%clk 0:00:59]} 26... Rg8
{[%clk 0:01:16.2]} 27. Raf1 {[%clk 0:00:49.6]} 27... Rbg7 {[%clk 0:01:15.6]} 28.
R1f2 {[%clk 0:00:49.2]} 28... d5 {[%clk 0:00:36.4]} 29. Bh6 {[%clk 0:00:31.6]}
29... dxe4 {[%clk 0:00:24.7]} 30. Qxd8+ {[%clk 0:00:27.4]} 30... Kxd8 {[%clk
0:00:18.8]} 31. Rxf6 {[%clk 0:00:24.5]} 31... Rg6 {[%clk 0:00:18.1]} 32. Rxg6
{[%clk 0:00:24.2]} 32... Rxg6 {[%clk 0:00:18.6]} 33. Bg5+ {[%clk 0:00:24.8]}
33... Kc7 {[%clk 0:00:17.2]} 34. Bxe4 {[%clk 0:00:25]} 34... Rg7 {[%clk
0:00:17.4]} 35. Rf6 {[%clk 0:00:24]} 35... Bd7 {[%clk 0:00:17.5]} 36. Rh6 {[%clk
0:00:18.2]} 36... Nd4 {[%clk 0:00:17.9]} 37. Rxh7 {[%clk 0:00:17.4]} 37... Rg8
{[%clk 0:00:16.7]} 38. Kf2 {[%clk 0:00:15.8]} 38... Kd6 {[%clk 0:00:15.9]} 39.
Rh6+ {[%clk 0:00:15.4]} 39... Be6 {[%clk 0:00:16.5]} 40. Rf6 {[%clk 0:00:12.8]}
40... Rc8 {[%clk 0:00:16.5]} 41. h5 {[%clk 0:00:13]} 41... Nxc2 {[%clk
0:00:16.5]} 42. h6 {[%clk 0:00:13.3]} 42... Nd4 {[%clk 0:00:14.3]} 43. h7 {[%clk
0:00:13.7]} 43... Rh8 {[%clk 0:00:14.7]} 44. Rh6 {[%clk 0:00:14]} 44... Nxb3
{[%clk 0:00:08.5]} 45. Bf6 {[%clk 0:00:13.8]} 45... Rxh7 {[%clk 0:00:09]} 46.
Rxh7 {[%clk 0:00:13.6]} 46... Nc5 {[%clk 0:00:09.9]} 47. Be7+ {[%clk 0:00:13.6]}
1-0

[Event "Early-Titled-Tuesday-Blitz-January-16-2024"]
[Site "Chess.com"]
[Date "2024.01.16"]
[Round "7"]
[White "Iskusnyh"]
[Black "ATM622"]
[Result "1-0"]
[WhiteElo "2641"]
[BlackElo "2491"]
[TimeControl "180+1"]
[EndTime "9:22:49 PST"]
[Termination "Iskusnyh won by resignation"]

1. d4 {[%clk 0:03:00.9]} 1... d5 {[%clk 0:02:59.8]} 2. c4 {[%clk 0:03:00.8]}
2... e6 {[%clk 0:02:59.8]} 3. Nf3 {[%clk 0:03:00.8]} 3... Nf6 {[%clk 0:02:59.7]}
4. g3 {[%clk 0:03:01]} 4... Be7 {[%clk 0:02:56.6]} 5. Bg2 {[%clk 0:03:01]} 5...
O-O {[%clk 0:02:56.1]} 6. O-O {[%clk 0:03:01.5]} 6... dxc4 {[%clk 0:02:56.3]} 7.
Na3 {[%clk 0:03:00.9]} 7... c5 {[%clk 0:02:54.4]} 8. Nxc4 {[%clk 0:02:55.3]}
8... cxd4 {[%clk 0:02:48.5]} 9. Qxd4 {[%clk 0:02:52.6]} 9... Nc6 {[%clk
0:02:45.1]} 10. Qxd8 {[%clk 0:02:48.7]} 10... Rxd8 {[%clk 0:02:46]} 11. Nfe5
{[%clk 0:02:47.6]} 11... Nd4 {[%clk 0:02:42.5]} 12. e3 {[%clk 0:02:36.8]} 12...
Ne2+ {[%clk 0:02:42.2]} 13. Kh1 {[%clk 0:02:36.6]} 13... Nxc1 {[%clk 0:02:42.1]}
14. Raxc1 {[%clk 0:02:35.7]} 14... Rb8 {[%clk 0:02:16.5]} 15. Rfd1 {[%clk
0:02:18.3]} 15... Nd7 {[%clk 0:02:07.7]} 16. Nxd7 {[%clk 0:01:54.1]} 16... Bxd7
{[%clk 0:02:01.4]} 17. Na5 {[%clk 0:01:53.7]} 17... b6 {[%clk 0:01:58.6]} 18.
Nb7 {[%clk 0:01:52.8]} 18... Rdc8 {[%clk 0:01:58]} 19. Rxc8+ {[%clk 0:01:35.6]}
19... Bxc8 {[%clk 0:01:57.6]} 20. Nd8 {[%clk 0:01:31.3]} 20... Kf8 {[%clk
0:01:52.5]} 21. Nc6 {[%clk 0:01:06.2]} 21... Rb7 {[%clk 0:01:52.5]} 22. b4
{[%clk 0:00:54.7]} 22... Rc7 {[%clk 0:01:48.9]} 23. b5 {[%clk 0:00:52.4]} 23...
a6 {[%clk 0:01:48.8]} 24. a4 {[%clk 0:00:40.7]} 24... a5 {[%clk 0:01:46.4]} 25.
Bf3 {[%clk 0:00:34.3]} 25... g6 {[%clk 0:01:41.1]} 26. h4 {[%clk 0:00:33.6]}
26... h5 {[%clk 0:01:41.2]} 27. Kg2 {[%clk 0:00:33.7]} 27... Bc5 {[%clk
0:01:34.4]} 28. Rc1 {[%clk 0:00:24.4]} 28... Bb7 {[%clk 0:01:24.6]} 29. Rc4
{[%clk 0:00:23.8]} 29... Bxc6 {[%clk 0:01:22.6]} 30. bxc6 {[%clk 0:00:23.4]}
30... Ke7 {[%clk 0:01:21.6]} 31. Kf1 {[%clk 0:00:22.9]} 31... Kd6 {[%clk
0:01:19.3]} 32. Ke2 {[%clk 0:00:22.6]} 32... f5 {[%clk 0:01:15.8]} 33. Rc1
{[%clk 0:00:21.9]} 33... Ke7 {[%clk 0:01:13.1]} 34. Kd3 {[%clk 0:00:21.6]} 34...
e5 {[%clk 0:01:10.1]} 35. Bd5 {[%clk 0:00:20.5]} 35... e4+ {[%clk 0:00:50.1]}
36. Kc4 {[%clk 0:00:20.5]} 36... Kd6 {[%clk 0:00:50.5]} 37. Rd1 {[%clk
0:00:20.4]} 37... Ke5 {[%clk 0:00:44.5]} 38. Kb5 {[%clk 0:00:20.5]} 38... Re7
{[%clk 0:00:20.6]} 39. Bc4 {[%clk 0:00:20.3]} 39... Rc7 {[%clk 0:00:03.8]} 40.
Rd5+ {[%clk 0:00:20.1]} 40... Kf6 {[%clk 0:00:03.5]} 41. Rxc5 {[%clk 0:00:20.1]}
41... bxc5 {[%clk 0:00:03.7]} 42. Kb6 {[%clk 0:00:20.4]} 42... Rc8 {[%clk
0:00:01.4]} 43. c7 {[%clk 0:00:20.7]} 43... Ke7 {[%clk 0:00:01.5]} 44. Ba6
{[%clk 0:00:20.9]} 44... Kd7 {[%clk 0:00:01.3]} 45. Bxc8+ {[%clk 0:00:21.1]}
45... Kxc8 {[%clk 0:00:02.2]} 46. Kxc5 {[%clk 0:00:22]} 46... Kxc7 {[%clk
0:00:02.7]} 47. Kb5 {[%clk 0:00:22.9]} 47... Kb7 {[%clk 0:00:02]} 48. Kxa5
{[%clk 0:00:23.2]} 48... f4 {[%clk 0:00:02.2]} 49. gxf4 {[%clk 0:00:22.7]} 49...
g5 {[%clk 0:00:01.4]} 50. fxg5 {[%clk 0:00:22.7]} 1-0